[Event "Titled Tuesday Blitz July 26 Early 2022"]
[White "Winkels, Marcel"]
[Black "Bashirli, Saadat"]
[WhiteFideId "1003887"]
[BlackFideId "13429990"]
[WhiteElo "1900"]
[BlackElo "1173"]
[Result "0-1"]
[Round "05"]
[TimeControl "180+1"]
[Date "2022.07.27"]
[WhiteClock "0:00:01"]
[BlackClock "0:00:05"]

1. e4 {[%clk 0:03:00]}  c5 {[%clk 0:02:59]} 2. Nf3 {[%clk 0:02:59]}  g6 {[%clk 0:03:00]} 3. d4 {[%clk 0:02:57]}  cxd4 {[%clk 0:03:00]} 4. Nxd4 {[%clk 0:02:58]}  Nc6 {[%clk 0:03:01]} 5. c4 {[%clk 0:02:58]}  Nf6 {[%clk 0:03:00]} 6. Nc3 {[%clk 0:02:54]}  Nxd4 {[%clk 0:02:59]} 7. Qxd4 {[%clk 0:02:53]}  d6 {[%clk 0:03:00]} 8. Bg5 {[%clk 0:02:47]}  Bg7 {[%clk 0:02:58]} 9. Qd2 {[%clk 0:02:45]}  O-O {[%clk 0:02:56]} 10. Bh6 {[%clk 0:02:35]}  Be6 {[%clk 0:02:47]} 11. Bxg7 {[%clk 0:02:31]}  Kxg7 {[%clk 0:02:48]} 12. Be2 {[%clk 0:02:29]}  Rc8 {[%clk 0:02:46]} 13. b3 {[%clk 0:02:29]}  a5 {[%clk 0:02:42]} 14. O-O {[%clk 0:02:27]}  Nd7 {[%clk 0:02:38]} 15. Nd5 {[%clk 0:02:26]}  Nc5 {[%clk 0:02:34]} 16. Qb2+ {[%clk 0:02:17]}  Kg8 {[%clk 0:02:31]} 17. f3 {[%clk 0:02:15]}  Bxd5 {[%clk 0:02:29]} 18. exd5 {[%clk 0:02:13]}  e6 {[%clk 0:02:26]} 19. dxe6 {[%clk 0:02:07]}  fxe6 {[%clk 0:02:22]} 20. Rad1 {[%clk 0:02:05]}  Qe7 {[%clk 0:02:19]} 21. Qd2 {[%clk 0:02:00]}  Rcd8 {[%clk 0:02:18]} 22. Qxa5 {[%clk 0:01:57]}  Qf6 {[%clk 0:02:06]} 23. Qd2 {[%clk 0:01:52]}  d5 {[%clk 0:02:01]} 24. Qd4 {[%clk 0:01:37]}  Qe7 {[%clk 0:01:56]} 25. h3 {[%clk 0:01:24]}  e5 {[%clk 0:01:54]} 26. Qd2 {[%clk 0:01:18]}  d4 {[%clk 0:01:50]} 27. Bd3 {[%clk 0:01:17]}  Qh4 {[%clk 0:01:44]} 28. Qf2 {[%clk 0:01:10]}  Qf4 {[%clk 0:01:39]} 29. Rfe1 {[%clk 0:01:09]}  Rde8 {[%clk 0:01:34]} 30. Be4 {[%clk 0:01:08]}  Ra8 {[%clk 0:01:28]} 31. Bd5+ {[%clk 0:01:05]}  Kg7 {[%clk 0:01:26]} 32. Qe2 {[%clk 0:01:00]}  Rae8 {[%clk 0:01:15]} 33. Qd2 {[%clk 0:00:49]}  Qg3 {[%clk 0:01:10]} 34. Be4 {[%clk 0:00:48]}  Rf4 {[%clk 0:01:01]} 35. Qf2 {[%clk 0:00:38]}  Qg5 {[%clk 0:00:57]} 36. Bb1 {[%clk 0:00:27]}  Ref8 {[%clk 0:00:49]} 37. Kh2 {[%clk 0:00:23]}  R4f7 {[%clk 0:00:33]} 38. Qe2 {[%clk 0:00:23]}  Qf4+ {[%clk 0:00:30]} 39. Kh1 {[%clk 0:00:21]}  Re7 {[%clk 0:00:28]} 40. Qd2 {[%clk 0:00:19]}  Qg3 {[%clk 0:00:27]} 41. Re2 {[%clk 0:00:18]}  Rfe8 {[%clk 0:00:25]} 42. Qe1 {[%clk 0:00:18]}  Qf4 {[%clk 0:00:25]} 43. Be4 {[%clk 0:00:14]}  b6 {[%clk 0:00:22]} 44. Bc2 {[%clk 0:00:13]}  Ne6 {[%clk 0:00:20]} 45. b4 {[%clk 0:00:11]}  Ng5 {[%clk 0:00:20]} 46. Be4 {[%clk 0:00:10]}  Qf6 {[%clk 0:00:17]} 47. Bd5 {[%clk 0:00:10]}  Qf5 {[%clk 0:00:17]} 48. Be4 {[%clk 0:00:08]}  Qf4 {[%clk 0:00:16]} 49. Bd5 {[%clk 0:00:08]}  h5 {[%clk 0:00:13]} 50. b5 {[%clk 0:00:07]}  Qf6 {[%clk 0:00:13]} 51. a4 {[%clk 0:00:07]}  Ra7 {[%clk 0:00:12]} 52. Ra2 {[%clk 0:00:05]}  Qf5 {[%clk 0:00:10]} 53. a5 {[%clk 0:00:04]}  bxa5 {[%clk 0:00:10]} 54. Rxa5 {[%clk 0:00:03]}  Rae7 {[%clk 0:00:10]} 55. Qf1 {[%clk 0:00:02]}  Qd7 {[%clk 0:00:05]} 56. b6 {[%clk 0:00:02]}  Qd6 {[%clk 0:00:05]} 57. b7 {[%clk 0:00:01]}  Rb8 {[%clk 0:00:05]} 0-1


[Site "https://www.chess.com"]

[Event "Titled Tuesday Blitz July 26 Early 2022"]
[White "Yaniuk, Volodymyr"]
[Black "Molina, Roberto Junio Brito"]
[WhiteFideId "14133083"]
[BlackFideId "2109450"]
[WhiteElo "2141"]
[BlackElo "2432"]
[Result "1-0"]
[Round "05"]
[TimeControl "180+1"]
[Date "2022.07.27"]
[WhiteClock "0:00:17"]
[BlackClock "0:00:04"]

1. d4 {[%clk 0:02:55]}  c6 {[%clk 0:02:46]} 2. c4 {[%clk 0:02:52]}  d5 {[%clk 0:02:47]} 3. Nf3 {[%clk 0:02:52]}  Nf6 {[%clk 0:02:45]} 4. e3 {[%clk 0:02:52]}  Bf5 {[%clk 0:02:43]} 5. Nc3 {[%clk 0:02:52]}  e6 {[%clk 0:02:44]} 6. Nh4 {[%clk 0:02:51]}  Bg6 {[%clk 0:02:44]} 7. Qb3 {[%clk 0:02:49]}  Qb6 {[%clk 0:02:41]} 8. Nxg6 {[%clk 0:02:49]}  hxg6 {[%clk 0:02:41]} 9. Qc2 {[%clk 0:02:49]}  Nbd7 {[%clk 0:02:41]} 10. Be2 {[%clk 0:02:46]}  Be7 {[%clk 0:02:40]} 11. Bd2 {[%clk 0:02:45]}  O-O {[%clk 0:02:33]} 12. O-O-O {[%clk 0:02:37]}  Rfc8 {[%clk 0:02:32]} 13. Kb1 {[%clk 0:02:30]}  Qd8 {[%clk 0:02:30]} 14. h4 {[%clk 0:02:29]}  dxc4 {[%clk 0:02:29]} 15. Bxc4 {[%clk 0:02:27]}  b5 {[%clk 0:02:29]} 16. Be2 {[%clk 0:02:26]}  a5 {[%clk 0:02:29]} 17. Ne4 {[%clk 0:02:24]}  Nxe4 {[%clk 0:02:28]} 18. Qxe4 {[%clk 0:02:25]}  Nf6 {[%clk 0:02:28]} 19. Qf3 {[%clk 0:02:19]}  Qd5 {[%clk 0:02:25]} 20. Rc1 {[%clk 0:02:10]}  b4 {[%clk 0:02:06]} 21. Bc4 {[%clk 0:02:05]}  Qxf3 {[%clk 0:01:57]} 22. gxf3 {[%clk 0:02:06]}  c5 {[%clk 0:01:55]} 23. dxc5 {[%clk 0:01:51]}  Rxc5 {[%clk 0:01:53]} 24. Be2 {[%clk 0:01:50]}  Rac8 {[%clk 0:01:50]} 25. Rxc5 {[%clk 0:01:40]}  Rxc5 {[%clk 0:01:51]} 26. e4 {[%clk 0:01:39]}  Rc7 {[%clk 0:01:21]} 27. Bg5 {[%clk 0:01:34]}  Bc5 {[%clk 0:01:15]} 28. Rc1 {[%clk 0:01:25]}  Nd7 {[%clk 0:01:10]} 29. Bb5 {[%clk 0:01:22]}  Ne5 {[%clk 0:00:53]} 30. Bf4 {[%clk 0:01:21]}  Bd6 {[%clk 0:00:52]} 31. Rd1 {[%clk 0:01:20]}  Rc5 {[%clk 0:00:46]} 32. Be2 {[%clk 0:01:16]}  Be7 {[%clk 0:00:38]} 33. Be3 {[%clk 0:01:03]}  Rc8 {[%clk 0:00:38]} 34. f4 {[%clk 0:01:02]}  Nc4 {[%clk 0:00:35]} 35. Rc1 {[%clk 0:01:01]}  Nd6 {[%clk 0:00:35]} 36. Rxc8+ {[%clk 0:01:00]}  Nxc8 {[%clk 0:00:36]} 37. h5 {[%clk 0:01:00]}  gxh5 {[%clk 0:00:33]} 38. Bxh5 {[%clk 0:01:01]}  g6 {[%clk 0:00:33]} 39. Be2 {[%clk 0:00:59]}  Bd8 {[%clk 0:00:34]} 40. Ba6 {[%clk 0:00:53]}  Nd6 {[%clk 0:00:32]} 41. Bd3 {[%clk 0:00:53]}  f5 {[%clk 0:00:30]} 42. f3 {[%clk 0:00:49]}  Kf7 {[%clk 0:00:29]} 43. Bc5 {[%clk 0:00:48]}  Bc7 {[%clk 0:00:27]} 44. Kc2 {[%clk 0:00:43]}  Nc8 {[%clk 0:00:27]} 45. Be3 {[%clk 0:00:42]}  Bb6 {[%clk 0:00:27]} 46. Bd2 {[%clk 0:00:41]}  Ke7 {[%clk 0:00:25]} 47. Kb3 {[%clk 0:00:41]}  Bd4 {[%clk 0:00:22]} 48. a3 {[%clk 0:00:40]}  bxa3 {[%clk 0:00:20]} 49. bxa3 {[%clk 0:00:41]}  Bb6 {[%clk 0:00:16]} 50. Ka4 {[%clk 0:00:40]}  Bc7 {[%clk 0:00:17]} 51. Kb5 {[%clk 0:00:35]}  Nd6+ {[%clk 0:00:11]} 52. Kc6 {[%clk 0:00:34]}  Bd8 {[%clk 0:00:12]} 53. Be3 {[%clk 0:00:29]}  Nf7 {[%clk 0:00:12]} 54. Bc5+ {[%clk 0:00:27]}  Ke8 {[%clk 0:00:12]} 55. Bb6 {[%clk 0:00:24]}  Bxb6 {[%clk 0:00:10]} 56. Kxb6 {[%clk 0:00:25]}  Kd7 {[%clk 0:00:10]} 57. Kxa5 {[%clk 0:00:25]}  Kc6 {[%clk 0:00:10]} 58. Kb4 {[%clk 0:00:25]}  g5 {[%clk 0:00:07]} 59. exf5 {[%clk 0:00:23]}  exf5 {[%clk 0:00:08]} 60. Bc4 {[%clk 0:00:19]}  Nd6 {[%clk 0:00:02]} 61. fxg5 {[%clk 0:00:19]}  Kd7 {[%clk 0:00:03]} 62. Bd5 {[%clk 0:00:18]}  Ke7 {[%clk 0:00:03]} 63. Kc5 {[%clk 0:00:18]}  f4 {[%clk 0:00:03]} 64. a4 {[%clk 0:00:18]}  Nf5 {[%clk 0:00:04]} 65. a5 {[%clk 0:00:17]} 1-0


[Site "https://www.chess.com"]

[Event "Titled Tuesday Blitz July 26 Early 2022"]
[White "Zhigalko, Sergei"]
[Black "Madaminov, Mukhiddin"]
[WhiteFideId "13502956"]
[BlackFideId "14210703"]
[WhiteElo "2662"]
[BlackElo "2011"]
[Result "0-1"]
[Round "05"]
[TimeControl "180+1"]
[Date "2022.07.26"]
[WhiteClock "0:00:02"]
[BlackClock "0:00:16"]

1. e4 {[%clk 0:03:00]}  e5 {[%clk 0:02:51]} 2. Nf3 {[%clk 0:03:01]}  Nc6 {[%clk 0:02:50]} 3. Bb5 {[%clk 0:03:01]}  a6 {[%clk 0:02:49]} 4. Ba4 {[%clk 0:03:01]}  Nf6 {[%clk 0:02:49]} 5. O-O {[%clk 0:03:02]}  Nxe4 {[%clk 0:02:48]} 6. d4 {[%clk 0:03:02]}  b5 {[%clk 0:02:48]} 7. Bb3 {[%clk 0:03:02]}  d5 {[%clk 0:02:48]} 8. dxe5 {[%clk 0:03:03]}  Be6 {[%clk 0:02:49]} 9. Nbd2 {[%clk 0:03:03]}  Be7 {[%clk 0:02:49]} 10. c3 {[%clk 0:02:59]}  O-O {[%clk 0:02:49]} 11. Bc2 {[%clk 0:03:00]}  f5 {[%clk 0:02:49]} 12. Nb3 {[%clk 0:03:00]}  Qd7 {[%clk 0:02:48]} 13. Nbd4 {[%clk 0:02:59]}  Nxd4 {[%clk 0:02:48]} 14. Nxd4 {[%clk 0:03:00]}  c5 {[%clk 0:02:49]} 15. Nxe6 {[%clk 0:03:00]}  Qxe6 {[%clk 0:02:50]} 16. f3 {[%clk 0:03:00]}  Ng5 {[%clk 0:02:49]} 17. a4 {[%clk 0:03:00]}  g6 {[%clk 0:02:38]} 18. Kh1 {[%clk 0:02:46]}  Rad8 {[%clk 0:02:30]} 19. axb5 {[%clk 0:02:40]}  axb5 {[%clk 0:02:28]} 20. Qe2 {[%clk 0:02:38]}  c4 {[%clk 0:02:22]} 21. Be3 {[%clk 0:02:27]}  Qxe5 {[%clk 0:02:11]} 22. f4 {[%clk 0:01:57]}  Qe6 {[%clk 0:02:10]} 23. fxg5 {[%clk 0:01:56]}  f4 {[%clk 0:02:09]} 24. Rf3 {[%clk 0:01:03]}  Bc5 {[%clk 0:01:58]} 25. b4 {[%clk 0:00:36]}  Bxe3 {[%clk 0:01:47]} 26. g3 {[%clk 0:00:37]}  Rde8 {[%clk 0:01:28]} 27. Re1 {[%clk 0:00:24]}  Qc6 {[%clk 0:00:57]} 28. Qg2 {[%clk 0:00:12]}  d4 {[%clk 0:00:51]} 29. cxd4 {[%clk 0:00:08]}  Bxd4 {[%clk 0:00:51]} 30. Ref1 {[%clk 0:00:05]}  Re3 {[%clk 0:00:21]} 31. gxf4 {[%clk 0:00:04]}  Rxf3 {[%clk 0:00:21]} 32. Rxf3 {[%clk 0:00:04]}  Re8 {[%clk 0:00:17]} 33. h4 {[%clk 0:00:01]}  Re1+ {[%clk 0:00:17]} 34. Kh2 {[%clk 0:00:02]}  Qe8 {[%clk 0:00:16]} 0-1


[Site "https://www.chess.com"]

[Event "Titled Tuesday Blitz July 26 Early 2022"]
[White "Zierk, Steven"]
[Black "Sadubayev, Airat"]
[WhiteFideId "2034255"]
[BlackFideId "13713264"]
[WhiteElo "2494"]
[BlackElo "2163"]
[Result "1-0"]
[Round "05"]
[TimeControl "180+1"]
[Date "2022.07.26"]
[WhiteClock "0:00:27"]
[BlackClock "0:00:02"]

1. e4 {[%clk 0:03:00]}  e5 {[%clk 0:02:53]} 2. Nf3 {[%clk 0:03:01]}  Nc6 {[%clk 0:02:53]} 3. Bc4 {[%clk 0:03:00]}  Bc5 {[%clk 0:02:49]} 4. c3 {[%clk 0:02:59]}  Nf6 {[%clk 0:02:48]} 5. d4 {[%clk 0:03:00]}  exd4 {[%clk 0:02:49]} 6. e5 {[%clk 0:03:00]}  d5 {[%clk 0:02:35]} 7. Bb5 {[%clk 0:03:00]}  Ne4 {[%clk 0:02:32]} 8. cxd4 {[%clk 0:03:00]}  Bb6 {[%clk 0:02:26]} 9. Nc3 {[%clk 0:03:00]}  O-O {[%clk 0:02:24]} 10. Be3 {[%clk 0:03:01]}  Bg4 {[%clk 0:02:21]} 11. h3 {[%clk 0:03:01]}  Bh5 {[%clk 0:02:18]} 12. Qc2 {[%clk 0:03:00]}  Bg6 {[%clk 0:02:16]} 13. Qb3 {[%clk 0:03:00]}  Ne7 {[%clk 0:02:14]} 14. O-O {[%clk 0:03:00]}  c6 {[%clk 0:02:11]} 15. Bd3 {[%clk 0:02:58]}  Nf5 {[%clk 0:02:11]} 16. Na4 {[%clk 0:02:49]}  f6 {[%clk 0:01:25]} 17. exf6 {[%clk 0:02:44]}  Rxf6 {[%clk 0:01:26]} 18. Nxb6 {[%clk 0:02:34]}  axb6 {[%clk 0:01:27]} 19. Bxe4 {[%clk 0:02:12]}  Nxe3 {[%clk 0:01:18]} 20. Bxg6 {[%clk 0:02:12]}  Nxf1 {[%clk 0:01:17]} 21. Bc2 {[%clk 0:02:07]}  Rxf3 {[%clk 0:00:48]} 22. Qxf3 {[%clk 0:02:08]}  Nd2 {[%clk 0:00:49]} 23. Qe2 {[%clk 0:01:59]}  Nc4 {[%clk 0:00:46]} 24. Bd3 {[%clk 0:01:42]}  Nd6 {[%clk 0:00:43]} 25. Qh5 {[%clk 0:01:35]}  Ne4 {[%clk 0:00:35]} 26. Re1 {[%clk 0:01:26]}  Nf6 {[%clk 0:00:30]} 27. Qf5 {[%clk 0:01:25]}  Qf8 {[%clk 0:00:17]} 28. g4 {[%clk 0:01:22]}  Re8 {[%clk 0:00:16]} 29. Re5 {[%clk 0:01:18]}  g6 {[%clk 0:00:13]} 30. Rxe8 {[%clk 0:01:11]}  Nxe8 {[%clk 0:00:14]} 31. Qd7 {[%clk 0:01:08]}  Qf7 {[%clk 0:00:14]} 32. Qd8 {[%clk 0:01:08]}  Kf8 {[%clk 0:00:13]} 33. Qxb6 {[%clk 0:01:07]}  Qg7 {[%clk 0:00:07]} 34. a4 {[%clk 0:01:02]}  h5 {[%clk 0:00:07]} 35. g5 {[%clk 0:01:00]}  h4 {[%clk 0:00:07]} 36. Qd8 {[%clk 0:00:58]}  Qf7 {[%clk 0:00:04]} 37. a5 {[%clk 0:00:55]}  Kg7 {[%clk 0:00:04]} 38. Kg2 {[%clk 0:00:50]}  Nc7 {[%clk 0:00:04]} 39. Qd6 {[%clk 0:00:44]}  Ne6 {[%clk 0:00:03]} 40. Qe5+ {[%clk 0:00:44]}  Kg8 {[%clk 0:00:03]} 41. Bf1 {[%clk 0:00:33]}  Nf4+ {[%clk 0:00:03]} 42. Kg1 {[%clk 0:00:33]}  Ne6 {[%clk 0:00:02]} 43. a6 {[%clk 0:00:31]}  bxa6 {[%clk 0:00:02]} 44. Bxa6 {[%clk 0:00:31]}  Nf4 {[%clk 0:00:03]} 45. Bc8 {[%clk 0:00:27]}  Nh5 {[%clk 0:00:02]} 46. Be6 {[%clk 0:00:27]} 1-0


[Site "https://www.chess.com"]

[Event "Titled Tuesday Blitz July 26 Early 2022"]
[White "Aggelis, Nikolaos"]
[Black "Tatarinov, Dmitry"]
[WhiteFideId "4213220"]
[BlackFideId "24160067"]
[WhiteElo "2154"]
[BlackElo "2302"]
[Result "0-1"]
[Round "06"]
[TimeControl "180+1"]
[Date "2022.07.27"]
[WhiteClock "0:00:03"]
[BlackClock "0:00:11"]

1. d4 {[%clk 0:03:00]}  Nf6 {[%clk 0:03:00]} 2. Nf3 {[%clk 0:02:58]}  g6 {[%clk 0:02:59]} 3. Bg5 {[%clk 0:02:52]}  Bg7 {[%clk 0:02:58]} 4. Nbd2 {[%clk 0:02:51]}  h6 {[%clk 0:02:57]} 5. Bh4 {[%clk 0:02:50]}  d6 {[%clk 0:02:56]} 6. c3 {[%clk 0:02:48]}  g5 {[%clk 0:02:56]} 7. Bg3 {[%clk 0:02:47]}  Nh5 {[%clk 0:02:55]} 8. e3 {[%clk 0:02:45]}  Nd7 {[%clk 0:02:52]} 9. Bd3 {[%clk 0:02:41]}  e6 {[%clk 0:02:49]} 10. Qb3 {[%clk 0:02:28]}  Qe7 {[%clk 0:02:48]} 11. O-O-O {[%clk 0:02:19]}  a5 {[%clk 0:02:46]} 12. e4 {[%clk 0:02:16]}  a4 {[%clk 0:02:43]} 13. Qc2 {[%clk 0:02:14]}  a3 {[%clk 0:02:44]} 14. b3 {[%clk 0:02:13]}  c5 {[%clk 0:02:39]} 15. Rhe1 {[%clk 0:02:08]}  cxd4 {[%clk 0:02:36]} 16. Nxd4 {[%clk 0:02:08]}  Nxg3 {[%clk 0:02:36]} 17. hxg3 {[%clk 0:02:04]}  O-O {[%clk 0:02:35]} 18. Nb5 {[%clk 0:01:55]}  Nc5 {[%clk 0:02:33]} 19. Nc4 {[%clk 0:01:51]}  Bd7 {[%clk 0:02:28]} 20. Ncxd6 {[%clk 0:01:43]}  Bxb5 {[%clk 0:02:25]} 21. Bxb5 {[%clk 0:01:41]}  Rfd8 {[%clk 0:01:57]} 22. e5 {[%clk 0:00:53]}  Bxe5 {[%clk 0:01:44]} 23. Nxf7 {[%clk 0:00:42]}  Rxd1+ {[%clk 0:01:41]} 24. Qxd1 {[%clk 0:00:34]}  Bxc3 {[%clk 0:01:40]} 25. Nxh6+ {[%clk 0:00:33]}  Kg7 {[%clk 0:01:38]} 26. Nf5+ {[%clk 0:00:32]}  Kf6 {[%clk 0:01:36]} 27. Nxe7 {[%clk 0:00:33]}  Kxe7 {[%clk 0:01:29]} 28. Rh1 {[%clk 0:00:27]}  Ne4 {[%clk 0:01:07]} 29. Rh7+ {[%clk 0:00:26]}  Kf6 {[%clk 0:01:07]} 30. Qf3+ {[%clk 0:00:21]}  Ke5 {[%clk 0:01:08]} 31. Bd3 {[%clk 0:00:20]}  Bb2+ {[%clk 0:01:07]} 32. Kb1 {[%clk 0:00:17]}  Nd2+ {[%clk 0:01:03]} 33. Kc2 {[%clk 0:00:17]}  Nxf3 {[%clk 0:01:03]} 34. gxf3 {[%clk 0:00:18]}  Rc8+ {[%clk 0:01:02]} 35. Kd2 {[%clk 0:00:18]}  b6 {[%clk 0:00:58]} 36. Rh5 {[%clk 0:00:17]}  Kd6 {[%clk 0:00:57]} 37. Bc4 {[%clk 0:00:17]}  Rf8 {[%clk 0:00:55]} 38. Rxg5 {[%clk 0:00:12]}  Rxf3 {[%clk 0:00:55]} 39. Ke2 {[%clk 0:00:13]}  Rc3 {[%clk 0:00:54]} 40. Rg6 {[%clk 0:00:12]}  Rc2+ {[%clk 0:00:54]} 41. Ke3 {[%clk 0:00:12]}  Bc1+ {[%clk 0:00:53]} 42. Kd3 {[%clk 0:00:11]}  Rd2+ {[%clk 0:00:53]} 43. Kc3 {[%clk 0:00:11]}  Rxa2 {[%clk 0:00:52]} 44. Rxe6+ {[%clk 0:00:12]}  Kc7 {[%clk 0:00:50]} 45. b4 {[%clk 0:00:11]}  Rxf2 {[%clk 0:00:49]} 46. Re8 {[%clk 0:00:10]}  Rf3+ {[%clk 0:00:47]} 47. Kd4 {[%clk 0:00:09]}  Bb2+ {[%clk 0:00:44]} 48. Kd5 {[%clk 0:00:09]}  Rxg3 {[%clk 0:00:43]} 49. Re7+ {[%clk 0:00:08]}  Kd8 {[%clk 0:00:43]} 50. Ra7 {[%clk 0:00:08]}  Rg5+ {[%clk 0:00:29]} 51. Kc6 {[%clk 0:00:08]}  Rg6+ {[%clk 0:00:21]} 52. Kb5 {[%clk 0:00:07]}  Rd6 {[%clk 0:00:18]} 53. Rb7 {[%clk 0:00:04]}  Bd4 {[%clk 0:00:12]} 54. Ra7 {[%clk 0:00:04]}  Bb2 {[%clk 0:00:12]} 55. Rb7 {[%clk 0:00:04]}  Rh6 {[%clk 0:00:11]} 56. Rxb6 {[%clk 0:00:04]}  Rh5+ {[%clk 0:00:11]} 57. Kc6 {[%clk 0:00:03]}  Rh4 {[%clk 0:00:11]} 0-1


[Site "https://www.chess.com"]

[Event "Titled Tuesday Blitz July 26 Early 2022"]
[White "Altman, Joshua"]
[Black "Rohith Krishna S"]
[WhiteFideId "426210"]
[BlackFideId "46617051"]
[WhiteElo "1945"]
[BlackElo "2117"]
[Result "0-1"]
[Round "06"]
[TimeControl "180+1"]
[Date "2022.07.26"]
[WhiteClock "0:00:15"]
[BlackClock "0:01:02"]

1. d4 {[%clk 0:03:00]}  c5 {[%clk 0:02:59]} 2. d5 {[%clk 0:03:00]}  Nf6 {[%clk 0:02:59]} 3. c4 {[%clk 0:03:01]}  e6 {[%clk 0:02:59]} 4. Nc3 {[%clk 0:03:01]}  exd5 {[%clk 0:02:59]} 5. cxd5 {[%clk 0:03:02]}  d6 {[%clk 0:03:00]} 6. Nf3 {[%clk 0:03:02]}  g6 {[%clk 0:03:00]} 7. Bf4 {[%clk 0:03:03]}  Bg7 {[%clk 0:03:00]} 8. e3 {[%clk 0:03:03]}  O-O {[%clk 0:03:01]} 9. h3 {[%clk 0:03:04]}  Na6 {[%clk 0:03:00]} 10. Bc4 {[%clk 0:03:03]}  Nc7 {[%clk 0:03:00]} 11. a4 {[%clk 0:03:04]}  b6 {[%clk 0:02:59]} 12. O-O {[%clk 0:03:04]}  Rb8 {[%clk 0:03:00]} 13. Nd2 {[%clk 0:03:00]}  a6 {[%clk 0:02:58]} 14. Qe2 {[%clk 0:02:41]}  Re8 {[%clk 0:02:52]} 15. Bg5 {[%clk 0:02:18]}  Qd7 {[%clk 0:02:47]} 16. Qf3 {[%clk 0:02:14]}  Nh5 {[%clk 0:02:24]} 17. Nde4 {[%clk 0:01:49]}  b5 {[%clk 0:02:08]} 18. axb5 {[%clk 0:01:47]}  axb5 {[%clk 0:02:08]} 19. Bd3 {[%clk 0:01:35]}  b4 {[%clk 0:02:08]} 20. Ne2 {[%clk 0:01:31]}  f5 {[%clk 0:02:01]} 21. Nd2 {[%clk 0:01:21]}  Bxb2 {[%clk 0:02:01]} 22. Ra7 {[%clk 0:01:20]}  Rb7 {[%clk 0:02:01]} 23. Rxb7 {[%clk 0:01:18]}  Bxb7 {[%clk 0:02:02]} 24. Nc4 {[%clk 0:01:19]}  Bxd5 {[%clk 0:02:00]} 25. Nb6 {[%clk 0:00:59]}  Bxf3 {[%clk 0:01:59]} 26. Nxd7 {[%clk 0:00:59]}  Bxe2 {[%clk 0:02:00]} 27. Bxe2 {[%clk 0:01:00]}  Ra8 {[%clk 0:01:54]} 28. g4 {[%clk 0:00:56]}  Ng7 {[%clk 0:01:50]} 29. Rd1 {[%clk 0:00:55]}  d5 {[%clk 0:01:47]} 30. Nb6 {[%clk 0:00:55]}  Ra1 {[%clk 0:01:47]} 31. Rxa1 {[%clk 0:00:53]}  Bxa1 {[%clk 0:01:48]} 32. Nxd5 {[%clk 0:00:53]}  Nxd5 {[%clk 0:01:46]} 33. Bc4 {[%clk 0:00:54]}  fxg4 {[%clk 0:01:47]} 34. Bxd5+ {[%clk 0:00:53]}  Kf8 {[%clk 0:01:46]} 35. hxg4 {[%clk 0:00:53]}  Ne8 {[%clk 0:01:46]} 36. Bf4 {[%clk 0:00:51]}  Ke7 {[%clk 0:01:45]} 37. Kf1 {[%clk 0:00:51]}  Nd6 {[%clk 0:01:45]} 38. Bxd6+ {[%clk 0:00:48]}  Kxd6 {[%clk 0:01:44]} 39. Bg8 {[%clk 0:00:49]}  h6 {[%clk 0:01:36]} 40. Bf7 {[%clk 0:00:47]}  g5 {[%clk 0:01:36]} 41. Ke2 {[%clk 0:00:47]}  Ke5 {[%clk 0:01:37]} 42. Kd3 {[%clk 0:00:46]}  Bc3 {[%clk 0:01:35]} 43. Kc4 {[%clk 0:00:42]}  Be1 {[%clk 0:01:35]} 44. f3 {[%clk 0:00:41]}  Kd6 {[%clk 0:01:31]} 45. f4 {[%clk 0:00:30]}  Bd2 {[%clk 0:01:20]} 46. fxg5 {[%clk 0:00:28]}  hxg5 {[%clk 0:01:19]} 47. e4 {[%clk 0:00:27]}  Be3 {[%clk 0:01:19]} 48. Bg6 {[%clk 0:00:25]}  Ke5 {[%clk 0:01:18]} 49. Bf5 {[%clk 0:00:25]}  Kf4 {[%clk 0:01:19]} 50. Kb3 {[%clk 0:00:25]}  Bd4 {[%clk 0:01:19]} 51. Kc4 {[%clk 0:00:25]}  Ke3 {[%clk 0:01:20]} 52. Kb3 {[%clk 0:00:24]}  Be5 {[%clk 0:01:19]} 53. Kc4 {[%clk 0:00:23]}  Kd2 {[%clk 0:01:19]} 54. Be6 {[%clk 0:00:20]}  Bd4 {[%clk 0:01:15]} 55. Bd5 {[%clk 0:00:17]}  Kc2 {[%clk 0:01:12]} 56. Bc6 {[%clk 0:00:13]}  Kd2 {[%clk 0:01:05]} 57. Bd5 {[%clk 0:00:12]}  Ke3 {[%clk 0:01:02]} 58. Be6 {[%clk 0:00:05]}  Kxe4 {[%clk 0:01:01]} 59. Bf5+ {[%clk 0:00:06]}  Ke3 {[%clk 0:01:02]} 60. Kb3 {[%clk 0:00:06]}  Kd2 {[%clk 0:01:01]} 61. Kc4 {[%clk 0:00:06]}  Kc1 {[%clk 0:01:01]} 62. Kb3 {[%clk 0:00:07]}  Be3 {[%clk 0:01:00]} 63. Kc4 {[%clk 0:00:07]}  Kb2 {[%clk 0:01:01]} 64. Be4 {[%clk 0:00:07]}  b3 {[%clk 0:00:59]} 65. Bf5 {[%clk 0:00:08]}  Ka2 {[%clk 0:00:57]} 66. Kc3 {[%clk 0:00:08]}  b2 {[%clk 0:00:56]} 67. Be6+ {[%clk 0:00:09]}  Ka1 {[%clk 0:00:56]} 68. Bf5 {[%clk 0:00:09]}  b1=Q {[%clk 0:00:56]} 69. Bxb1 {[%clk 0:00:09]}  Kxb1 {[%clk 0:00:56]} 70. Kc4 {[%clk 0:00:10]}  Kc2 {[%clk 0:00:56]} 71. Kd5 {[%clk 0:00:11]}  Kd3 {[%clk 0:00:56]} 72. Ke5 {[%clk 0:00:11]}  c4 {[%clk 0:00:57]} 73. Kf5 {[%clk 0:00:12]}  c3 {[%clk 0:00:58]} 74. Kg6 {[%clk 0:00:13]}  c2 {[%clk 0:00:59]} 75. Kh5 {[%clk 0:00:13]}  c1=Q {[%clk 0:01:00]} 76. Kh6 {[%clk 0:00:14]}  Qc6+ {[%clk 0:01:00]} 77. Kh5 {[%clk 0:00:14]}  Qf3 {[%clk 0:01:01]} 78. Kh6 {[%clk 0:00:15]}  Qxg4 {[%clk 0:01:01]} 79. Kh7 {[%clk 0:00:15]}  Qf5+ {[%clk 0:01:01]} 80. Kh6 {[%clk 0:00:15]}  Bd4 {[%clk 0:01:00]} 81. Kh5 {[%clk 0:00:15]}  g4+ {[%clk 0:01:01]} 82. Kh4 {[%clk 0:00:15]}  Bf2# {[%clk 0:01:02]} 0-1


[Site "https://www.chess.com"]